[Event "Early-Titled-Tuesday-Blitz-October-17-2023"]
[Site "Chess.com"]
[Date "2023.10.17"]
[Round "3"]
[White "NelsonLinda"]
[Black "RobertoJBM"]
[Result "1-0"]
[WhiteElo "2609"]
[BlackElo "2798"]
[TimeControl "180+1"]
[EndTime "8:29:08 PDT"]
[Termination "NelsonLinda won by resignation"]

1. Nf3 {[%clk 0:03:00.9]} 1... d5 {[%clk 0:02:55.4]} 2. b3 {[%clk 0:03:00.3]}
2... Bg4 {[%clk 0:02:54.1]} 3. Bb2 {[%clk 0:02:56.6]} 3... Nd7 {[%clk 0:02:51]}
4. g3 {[%clk 0:02:44.8]} 4... e6 {[%clk 0:02:48.4]} 5. Bg2 {[%clk 0:02:44.9]}
5... Ngf6 {[%clk 0:02:48]} 6. d3 {[%clk 0:02:44.2]} 6... Bd6 {[%clk 0:02:46.6]}
7. Nbd2 {[%clk 0:02:43.7]} 7... Qe7 {[%clk 0:02:46.7]} 8. O-O {[%clk 0:02:43.3]}
8... Ba3 {[%clk 0:02:44.1]} 9. Qc1 {[%clk 0:02:41.3]} 9... Bxb2 {[%clk
0:02:43.5]} 10. Qxb2 {[%clk 0:02:42.2]} 10... O-O {[%clk 0:02:41.8]} 11. e4
{[%clk 0:02:31.4]} 11... c6 {[%clk 0:02:37.5]} 12. Rfe1 {[%clk 0:02:27.6]} 12...
a5 {[%clk 0:02:32.8]} 13. a3 {[%clk 0:02:26]} 13... Rfc8 {[%clk 0:02:30.1]} 14.
h3 {[%clk 0:02:21.1]} 14... Bxf3 {[%clk 0:02:27.6]} 15. Bxf3 {[%clk 0:02:12.6]}
15... Qc5 {[%clk 0:02:23.1]} 16. Bg2 {[%clk 0:02:08]} 16... Qb6 {[%clk
0:02:21.6]} 17. Rab1 {[%clk 0:02:03.2]} 17... Nf8 {[%clk 0:02:17]} 18. Re2
{[%clk 0:01:58.3]} 18... Qd8 {[%clk 0:02:15]} 19. f4 {[%clk 0:01:47.6]} 19...
dxe4 {[%clk 0:02:13.6]} 20. dxe4 {[%clk 0:01:42.2]} 20... b5 {[%clk 0:02:09.7]}
21. e5 {[%clk 0:01:38.6]} 21... Nd5 {[%clk 0:02:06.4]} 22. Ne4 {[%clk 0:01:39]}
22... Qb6+ {[%clk 0:02:05.5]} 23. Kh2 {[%clk 0:01:38.5]} 23... Ne7 {[%clk
0:02:02]} 24. Nd6 {[%clk 0:01:38.2]} 24... Rc7 {[%clk 0:01:58.1]} 25. g4 {[%clk
0:01:35.9]} 25... Rd8 {[%clk 0:01:51]} 26. Qc3 {[%clk 0:01:33.3]} 26... Nc8
{[%clk 0:01:37]} 27. Rd1 {[%clk 0:01:32.4]} 27... Rdd7 {[%clk 0:01:19.6]} 28.
Red2 {[%clk 0:01:30.4]} 28... Re7 {[%clk 0:01:12.9]} 29. Ne4 {[%clk 0:01:23.2]}
29... c5 {[%clk 0:01:10.3]} 30. Rd8 {[%clk 0:01:19.7]} 30... c4 {[%clk
0:01:04.7]} 31. b4 {[%clk 0:01:16]} 31... axb4 {[%clk 0:01:03.4]} 32. axb4
{[%clk 0:01:16.8]} 32... Rcd7 {[%clk 0:00:58.5]} 33. R1xd7 {[%clk 0:01:04.6]}
33... Rxd7 {[%clk 0:00:58.5]} 34. Rxc8 {[%clk 0:01:03.9]} 34... Rd1 {[%clk
0:00:57.6]} 35. Nc5 {[%clk 0:01:02.1]} 35... Qa7 {[%clk 0:00:52]} 36. Qf3 {[%clk
0:00:59]} 36... Rd2 {[%clk 0:00:48.5]} 37. Qc6 {[%clk 0:00:49.8]} 37... Rxc2
{[%clk 0:00:36.8]} 38. Ra8 {[%clk 0:00:37.5]} 38... Qe7 {[%clk 0:00:33.2]} 39.
Qd6 {[%clk 0:00:37.5]} 39... Qxd6 {[%clk 0:00:18.7]} 40. exd6 {[%clk 0:00:38.4]}
40... Rd2 {[%clk 0:00:17.8]} 41. d7 {[%clk 0:00:38.6]} 41... c3 {[%clk 0:00:17]}
42. d8=Q {[%clk 0:00:34.6]} 42... Rxd8 {[%clk 0:00:16.6]} 43. Rxd8 {[%clk
0:00:35.5]} 43... c2 {[%clk 0:00:17.5]} 1-0

[Event "Early-Titled-Tuesday-Blitz-October-17-2023"]
[Site "Chess.com"]
[Date "2023.10.17"]
[Round "3"]
[White "GMaka"]
[Black "wqws"]
[Result "0-1"]
[WhiteElo "2448"]
[BlackElo "2634"]
[TimeControl "180+1"]
[EndTime "8:29:08 PDT"]
[Termination "wqws won by resignation"]

1. d4 {[%clk 0:03:00.9]} 1... Nf6 {[%clk 0:02:59.3]} 2. Bg5 {[%clk 0:02:59.5]}
2... g6 {[%clk 0:03:00.2]} 3. Bxf6 {[%clk 0:02:58.4]} 3... exf6 {[%clk
0:03:01.1]} 4. g3 {[%clk 0:02:57.6]} 4... Bg7 {[%clk 0:03:02]} 5. Bg2 {[%clk
0:02:58.3]} 5... O-O {[%clk 0:03:02.7]} 6. e3 {[%clk 0:02:58.9]} 6... d5 {[%clk
0:03:03.6]} 7. Ne2 {[%clk 0:02:57]} 7... c6 {[%clk 0:03:04]} 8. O-O {[%clk
0:02:54.3]} 8... Nd7 {[%clk 0:03:03]} 9. Nf4 {[%clk 0:02:54.5]} 9... f5 {[%clk
0:03:02.8]} 10. c3 {[%clk 0:02:41.4]} 10... Nf6 {[%clk 0:03:01.6]} 11. Nd2
{[%clk 0:02:41.1]} 11... Re8 {[%clk 0:03:01.4]} 12. b4 {[%clk 0:02:26.7]} 12...
Ne4 {[%clk 0:02:58.9]} 13. Qc2 {[%clk 0:02:12.9]} 13... h5 {[%clk 0:02:57.8]}
14. h4 {[%clk 0:02:11.9]} 14... Be6 {[%clk 0:02:50.2]} 15. Nxe4 {[%clk
0:01:55.9]} 15... fxe4 {[%clk 0:02:47.9]} 16. c4 {[%clk 0:01:56.5]} 16... Bh6
{[%clk 0:02:27]} 17. Nxe6 {[%clk 0:01:23.7]} 17... Rxe6 {[%clk 0:02:27.9]} 18.
b5 {[%clk 0:01:17]} 18... g5 {[%clk 0:02:26.8]} 19. hxg5 {[%clk 0:01:16.4]}
19... Qxg5 {[%clk 0:02:27.6]} 20. cxd5 {[%clk 0:01:11.1]} 20... cxd5 {[%clk
0:02:27.1]} 21. Qc7 {[%clk 0:01:08.9]} 21... h4 {[%clk 0:02:26.8]} 22. Qf4
{[%clk 0:01:08.6]} 22... hxg3 {[%clk 0:02:24]} 23. fxg3 {[%clk 0:01:06.7]} 23...
Qg7 {[%clk 0:02:15.8]} 24. Qf2 {[%clk 0:01:02.6]} 24... Bg5 {[%clk 0:02:12.8]}
25. Rae1 {[%clk 0:00:30.9]} 25... Rd8 {[%clk 0:01:57.9]} 26. Qf5 {[%clk
0:00:27.9]} 26... Rf6 {[%clk 0:01:56.4]} 27. Qe5 {[%clk 0:00:19.9]} 27... Rxf1+
{[%clk 0:01:55.4]} 28. Kxf1 {[%clk 0:00:20.6]} 28... Qxe5 {[%clk 0:01:53.4]} 29.
dxe5 {[%clk 0:00:20.8]} 29... Re8 {[%clk 0:01:54]} 30. Ke2 {[%clk 0:00:20.7]}
30... Rxe5 {[%clk 0:01:54.4]} 31. Rc1 {[%clk 0:00:16.7]} 31... Re7 {[%clk
0:01:51]} 32. Rc8+ {[%clk 0:00:16.5]} 32... Kg7 {[%clk 0:01:51.1]} 33. Bh3
{[%clk 0:00:17.2]} 33... Bf6 {[%clk 0:01:45.5]} 34. Bf5 {[%clk 0:00:17.4]} 34...
Be5 {[%clk 0:01:45.1]} 35. g4 {[%clk 0:00:17.4]} 35... a6 {[%clk 0:01:41.7]} 36.
b6 {[%clk 0:00:14.1]} 36... Bd6 {[%clk 0:01:33.1]} 37. a4 {[%clk 0:00:12.2]}
37... a5 {[%clk 0:01:33.1]} 38. Ra8 {[%clk 0:00:11.3]} 38... Bc5 {[%clk
0:01:31.6]} 39. Rxa5 {[%clk 0:00:11.9]} 39... Bxb6 {[%clk 0:01:32]} 40. Rxd5
{[%clk 0:00:12.6]} 40... Rc7 {[%clk 0:01:28]} 41. Rd7 {[%clk 0:00:12.6]} 41...
Rc2+ {[%clk 0:01:24.9]} 42. Kd1 {[%clk 0:00:13.2]} 42... Rc3 {[%clk 0:01:24.5]}
43. Rxb7 {[%clk 0:00:13.6]} 43... Bxe3 {[%clk 0:01:23.9]} 44. Be6 {[%clk
0:00:14.2]} 44... Kf6 {[%clk 0:01:20.7]} 45. Bxf7 {[%clk 0:00:14.8]} 45... Bg5
{[%clk 0:01:20.2]} 46. Bb3 {[%clk 0:00:12.8]} 46... Rd3+ {[%clk 0:01:18]} 47.
Ke1 {[%clk 0:00:12.2]} 47... e3 {[%clk 0:01:13.5]} 48. Rb5 {[%clk 0:00:12]}
48... Rd2 {[%clk 0:01:10.7]} 49. a5 {[%clk 0:00:08.6]} 49... Bh4+ {[%clk
0:01:10.6]} 50. Kf1 {[%clk 0:00:08.4]} 50... e2+ {[%clk 0:01:11.1]} 0-1

[Event "Early-Titled-Tuesday-Blitz-October-17-2023"]
[Site "Chess.com"]
[Date "2023.10.17"]
[Round "3"]
[White "ChessSkool"]
[Black "Beca95"]
[Result "0-1"]
[WhiteElo "2669"]
[BlackElo "2922"]
[TimeControl "180+1"]
[EndTime "8:29:10 PDT"]
[Termination "Beca95 won by resignation"]

1. e4 {[%clk 0:02:52.8]} 1... e5 {[%clk 0:02:59.3]} 2. Nf3 {[%clk 0:02:52.8]}
2... Nc6 {[%clk 0:02:59.6]} 3. Bc4 {[%clk 0:02:52]} 3... Nf6 {[%clk 0:02:57.9]}
4. d3 {[%clk 0:02:52.2]} 4... h6 {[%clk 0:02:57]} 5. O-O {[%clk 0:02:47.1]} 5...
Bc5 {[%clk 0:02:55.3]} 6. Nc3 {[%clk 0:02:43.2]} 6... a5 {[%clk 0:02:53]} 7. Be3
{[%clk 0:02:30]} 7... Bxe3 {[%clk 0:02:50.6]} 8. fxe3 {[%clk 0:02:30.9]} 8... d6
{[%clk 0:02:50.4]} 9. Nh4 {[%clk 0:02:26.1]} 9... O-O {[%clk 0:02:39.7]} 10. Qe1
{[%clk 0:02:23.6]} 10... Be6 {[%clk 0:02:34.3]} 11. Nd5 {[%clk 0:02:17.8]} 11...
Bxd5 {[%clk 0:02:32.6]} 12. exd5 {[%clk 0:02:18.1]} 12... Ne7 {[%clk 0:02:32.6]}
13. e4 {[%clk 0:02:18.6]} 13... Nd7 {[%clk 0:02:25.4]} 14. c3 {[%clk 0:01:57.8]}
14... g6 {[%clk 0:02:08]} 15. d4 {[%clk 0:01:40.5]} 15... Kh7 {[%clk 0:02:04.5]}
16. Bd3 {[%clk 0:01:36.2]} 16... Ng8 {[%clk 0:02:04.4]} 17. Qg3 {[%clk
0:01:34.5]} 17... Qg5 {[%clk 0:02:04.1]} 18. Qh3 {[%clk 0:01:31.7]} 18... Ngf6
{[%clk 0:02:02.4]} 19. Rae1 {[%clk 0:00:57.8]} 19... Qg4 {[%clk 0:01:59.4]} 20.
Qxg4 {[%clk 0:00:35.4]} 20... Nxg4 {[%clk 0:02:00.3]} 21. Bb5 {[%clk 0:00:35.8]}
21... Ngf6 {[%clk 0:01:58.7]} 22. dxe5 {[%clk 0:00:33.9]} 22... dxe5 {[%clk
0:01:57.7]} 23. Nf3 {[%clk 0:00:20.7]} 23... Kg7 {[%clk 0:01:57]} 24. Nd2 {[%clk
0:00:18.3]} 24... Nc5 {[%clk 0:01:47]} 25. a4 {[%clk 0:00:17.6]} 25... Rfc8
{[%clk 0:01:36.5]} 26. Ra1 {[%clk 0:00:07.6]} 26... c6 {[%clk 0:01:36.2]} 27.
dxc6 {[%clk 0:00:06.3]} 27... bxc6 {[%clk 0:01:37.1]} 28. Bc4 {[%clk 0:00:07]}
28... Rab8 {[%clk 0:01:33.8]} 29. b3 {[%clk 0:00:06.9]} 29... Re8 {[%clk
0:01:30.8]} 30. Rae1 {[%clk 0:00:05.9]} 30... Re7 {[%clk 0:01:30.1]} 31. Re2
{[%clk 0:00:06.3]} 31... Rd8 {[%clk 0:01:27.3]} 32. Nf3 {[%clk 0:00:05.7]} 32...
Ncxe4 {[%clk 0:01:23.3]} 33. Rfe1 {[%clk 0:00:03.9]} 33... Nxc3 {[%clk
0:01:17.7]} 34. Rxe5 {[%clk 0:00:04.5]} 34... Rxe5 {[%clk 0:01:18.1]} 35. Rxe5
{[%clk 0:00:05.4]} 35... Rd1+ {[%clk 0:01:17.6]} 36. Kf2 {[%clk 0:00:06]} 36...
Ng4+ {[%clk 0:01:17]} 37. Kg3 {[%clk 0:00:02]} 37... Nxe5 {[%clk 0:01:16.9]} 38.
Nxe5 {[%clk 0:00:02.9]} 38... Ne4+ {[%clk 0:01:14]} 39. Kf4 {[%clk 0:00:02.4]}
39... Nd6 {[%clk 0:01:12.3]} 40. Ke3 {[%clk 0:00:01.4]} 40... c5 {[%clk
0:01:08.6]} 41. Nc6 {[%clk 0:00:01.4]} 41... Nxc4+ {[%clk 0:01:08.7]} 42. bxc4
{[%clk 0:00:02.3]} 42... Ra1 {[%clk 0:01:08.9]} 43. Ke4 {[%clk 0:00:01.4]} 43...
Rxa4 {[%clk 0:01:08.9]} 44. Kd5 {[%clk 0:00:02.3]} 44... Ra2 {[%clk 0:01:09.5]}
45. Kxc5 {[%clk 0:00:02.6]} 45... a4 {[%clk 0:01:09.9]} 46. Kb4 {[%clk
0:00:03.2]} 46... a3 {[%clk 0:01:09.3]} 47. Nd4 {[%clk 0:00:03.5]} 47... Rd2
{[%clk 0:01:08.3]} 48. Nb3 {[%clk 0:00:02.3]} 48... a2 {[%clk 0:01:08.4]} 49.
Ka3 {[%clk 0:00:01.8]} 49... Rxg2 {[%clk 0:01:07.4]} 50. c5 {[%clk 0:00:01.5]}
50... Rxh2 {[%clk 0:01:07.8]} 51. c6 {[%clk 0:00:01.2]} 51... Rc2 {[%clk
0:01:07.6]} 52. Kb4 {[%clk 0:00:01.5]} 52... Rb2 {[%clk 0:01:06.8]} 53. Ka3
{[%clk 0:00:02]} 53... Rxb3+ {[%clk 0:01:06.8]} 54. Kxb3 {[%clk 0:00:02.9]} 0-1

[Event "Early-Titled-Tuesday-Blitz-October-17-2023"]
[Site "Chess.com"]
[Date "2023.10.17"]
[Round "3"]
[White "Josgar05"]
[Black "Maxfan2008"]
[Result "1-0"]
[WhiteElo "2360"]
[BlackElo "2538"]
[TimeControl "180+1"]
[EndTime "8:29:10 PDT"]
[Termination "Josgar05 won on time"]

1. Nf3 {[%clk 0:03:00.9]} 1... d5 {[%clk 0:02:59]} 2. b3 {[%clk 0:03:01.8]} 2...
Nf6 {[%clk 0:02:56.7]} 3. Bb2 {[%clk 0:03:02.1]} 3... Bg4 {[%clk 0:02:57]} 4. g3
{[%clk 0:03:01.6]} 4... c6 {[%clk 0:02:56.8]} 5. Bg2 {[%clk 0:03:01.8]} 5...
Nbd7 {[%clk 0:02:56.8]} 6. O-O {[%clk 0:03:02.5]} 6... e6 {[%clk 0:02:56.8]} 7.
d3 {[%clk 0:03:03.1]} 7... Be7 {[%clk 0:02:55]} 8. Nbd2 {[%clk 0:03:03.7]} 8...
O-O {[%clk 0:02:55.2]} 9. e4 {[%clk 0:03:01.9]} 9... dxe4 {[%clk 0:02:52.7]} 10.
dxe4 {[%clk 0:03:02.8]} 10... e5 {[%clk 0:02:40.6]} 11. h3 {[%clk 0:02:55.3]}
11... Bxf3 {[%clk 0:02:37.6]} 12. Bxf3 {[%clk 0:02:53.9]} 12... Qc7 {[%clk
0:02:37.6]} 13. Qe2 {[%clk 0:02:53.5]} 13... Rad8 {[%clk 0:02:33]} 14. a4 {[%clk
0:02:45.1]} 14... Rfe8 {[%clk 0:02:30.6]} 15. Nc4 {[%clk 0:02:37.6]} 15... Bc5
{[%clk 0:02:09.1]} 16. Kg2 {[%clk 0:02:20.9]} 16... Nf8 {[%clk 0:02:07.5]} 17.
Ne3 {[%clk 0:02:13.9]} 17... Ne6 {[%clk 0:02:01.4]} 18. Nf5 {[%clk 0:02:00.1]}
18... Bf8 {[%clk 0:01:47.2]} 19. Rad1 {[%clk 0:01:58.2]} 19... g6 {[%clk
0:01:39.8]} 20. Ne3 {[%clk 0:01:49.1]} 20... Nd4 {[%clk 0:01:37.9]} 21. Bxd4
{[%clk 0:01:38.7]} 21... exd4 {[%clk 0:01:37]} 22. Nc4 {[%clk 0:01:39.2]} 22...
b5 {[%clk 0:01:28.5]} 23. axb5 {[%clk 0:01:37.4]} 23... cxb5 {[%clk 0:01:28.4]}
24. Nd2 {[%clk 0:01:37.6]} 24... Qxc2 {[%clk 0:01:24.3]} 25. Qxb5 {[%clk
0:01:32.3]} 25... Bh6 {[%clk 0:01:14]} 26. e5 {[%clk 0:00:52.5]} 26... Nh5
{[%clk 0:00:16]} 27. Nc4 {[%clk 0:00:45.3]} 27... Qf5 {[%clk 0:00:09.1]} 28.
Rxd4 {[%clk 0:00:25.1]} 28... Rxd4 {[%clk 0:00:07.1]} 29. Qxe8+ {[%clk 0:00:25]}
29... Kg7 {[%clk 0:00:07]} 30. Nd6 {[%clk 0:00:25.2]} 30... Qe6 {[%clk
0:00:03.9]} 31. Qb5 {[%clk 0:00:23.3]} 31... Rd2 {[%clk 0:00:02.2]} 32. Ne4
{[%clk 0:00:22]} 32... Rb2 {[%clk 0:00:01.6]} 33. Nc5 {[%clk 0:00:19.2]} 1-0

[Event "Early-Titled-Tuesday-Blitz-October-17-2023"]
[Site "Chess.com"]
[Date "2023.10.17"]
[Round "3"]
[White "ljm509"]
[Black "WindWhistler11"]
[Result "0-1"]
[WhiteElo "2248"]
[BlackElo "2471"]
[TimeControl "180+1"]
[EndTime "8:29:10 PDT"]
[Termination "WindWhistler11 won by checkmate"]

1. e4 {[%clk 0:03:00.9]} 1... e6 {[%clk 0:02:55.6]} 2. d4 {[%clk 0:02:58.8]}
2... d5 {[%clk 0:02:56.5]} 3. Nc3 {[%clk 0:02:54.4]} 3... Bb4 {[%clk 0:02:55.1]}
4. exd5 {[%clk 0:02:53.6]} 4... exd5 {[%clk 0:02:54.9]} 5. Nf3 {[%clk
0:02:53.6]} 5... Ne7 {[%clk 0:02:55.3]} 6. Bd3 {[%clk 0:02:53.1]} 6... Nbc6
{[%clk 0:02:55.6]} 7. O-O {[%clk 0:02:52.2]} 7... Bg4 {[%clk 0:02:56]} 8. Be3
{[%clk 0:02:49.9]} 8... f6 {[%clk 0:02:48.9]} 9. h3 {[%clk 0:02:49.3]} 9... Bh5
{[%clk 0:02:47.8]} 10. Be2 {[%clk 0:02:46.9]} 10... Qd7 {[%clk 0:02:45.9]} 11.
Nh4 {[%clk 0:02:42.7]} 11... Bf7 {[%clk 0:02:41.3]} 12. Bg4 {[%clk 0:02:39.2]}
12... f5 {[%clk 0:02:34.4]} 13. Be2 {[%clk 0:02:33.5]} 13... h6 {[%clk
0:02:30.1]} 14. Nf3 {[%clk 0:02:26.7]} 14... O-O-O {[%clk 0:02:25.5]} 15. Bb5
{[%clk 0:02:26.8]} 15... Bd6 {[%clk 0:02:16.1]} 16. Na4 {[%clk 0:02:19.8]} 16...
a6 {[%clk 0:02:11.8]} 17. Bxc6 {[%clk 0:02:15.3]} 17... Qxc6 {[%clk 0:02:06.8]}
18. b3 {[%clk 0:02:10.3]} 18... g5 {[%clk 0:02:00.2]} 19. Ne5 {[%clk 0:02:09.9]}
19... Bxe5 {[%clk 0:01:47.3]} 20. dxe5 {[%clk 0:02:10.8]} 20... d4 {[%clk
0:01:19.7]} 21. Bxd4 {[%clk 0:01:51.2]} 21... Nd5 {[%clk 0:01:17.4]} 22. Qf3
{[%clk 0:01:35.2]} 22... Bh5 {[%clk 0:01:11.6]} 23. Qxh5 {[%clk 0:01:31.3]}
23... Nf4 {[%clk 0:01:11.5]} 24. Qf3 {[%clk 0:01:30.4]} 24... Qxf3 {[%clk
0:01:04.4]} 25. gxf3 {[%clk 0:01:31.3]} 25... Ne2+ {[%clk 0:01:04.9]} 26. Kg2
{[%clk 0:01:29.1]} 26... Nf4+ {[%clk 0:01:01.8]} 27. Kh2 {[%clk 0:01:23.8]}
27... Rxd4 {[%clk 0:00:58.5]} 28. Rad1 {[%clk 0:01:19.9]} 28... Rhd8 {[%clk
0:00:58.9]} 29. Nc3 {[%clk 0:01:17]} 29... b5 {[%clk 0:00:43.3]} 30. Rxd4 {[%clk
0:01:16]} 30... Rxd4 {[%clk 0:00:42.9]} 31. Rd1 {[%clk 0:01:16.9]} 31... Rxd1
{[%clk 0:00:37.1]} 32. Nxd1 {[%clk 0:01:17.8]} 32... Kd7 {[%clk 0:00:37.1]} 33.
Ne3 {[%clk 0:01:07.3]} 33... Ke6 {[%clk 0:00:36.7]} 34. Ng2 {[%clk 0:01:03.4]}
34... Ne2 {[%clk 0:00:30.4]} 35. h4 {[%clk 0:00:58.7]} 35... Kxe5 {[%clk
0:00:28.8]} 36. hxg5 {[%clk 0:00:58.6]} 36... hxg5 {[%clk 0:00:29.7]} 37. Ne3
{[%clk 0:00:56.7]} 37... f4 {[%clk 0:00:23.4]} 38. Nd1 {[%clk 0:00:55.7]} 38...
Kd4 {[%clk 0:00:22.7]} 39. Kh3 {[%clk 0:00:54.7]} 39... Nc3 {[%clk 0:00:21.4]}
40. Nxc3 {[%clk 0:00:53.5]} 40... Kxc3 {[%clk 0:00:21.1]} 41. Kg4 {[%clk
0:00:54.1]} 41... Kxc2 {[%clk 0:00:21]} 42. Kxg5 {[%clk 0:00:54.5]} 42... c5
{[%clk 0:00:21.1]} 43. Kxf4 {[%clk 0:00:53.3]} 43... c4 {[%clk 0:00:21.8]} 44.
bxc4 {[%clk 0:00:53]} 44... bxc4 {[%clk 0:00:22.5]} 45. Kg4 {[%clk 0:00:53.3]}
45... c3 {[%clk 0:00:23.2]} 46. f4 {[%clk 0:00:53]} 46... Kb2 {[%clk 0:00:23.3]}
47. f5 {[%clk 0:00:53.1]} 47... c2 {[%clk 0:00:24.1]} 48. f6 {[%clk 0:00:53.3]}
48... c1=Q {[%clk 0:00:24.8]} 49. f7 {[%clk 0:00:53.4]} 49... Qh6 {[%clk
0:00:25.2]} 50. Kf5 {[%clk 0:00:52.4]} 50... Qf8 {[%clk 0:00:25.7]} 51. Kf6
{[%clk 0:00:52]} 51... Kxa2 {[%clk 0:00:25.9]} 52. f4 {[%clk 0:00:52.9]} 52...
Kb3 {[%clk 0:00:26.6]} 53. f5 {[%clk 0:00:53.8]} 53... a5 {[%clk 0:00:27.3]} 54.
Kg6 {[%clk 0:00:54.1]} 54... a4 {[%clk 0:00:28]} 55. f6 {[%clk 0:00:55]} 55...
a3 {[%clk 0:00:28.5]} 56. Kf5 {[%clk 0:00:55]} 56... a2 {[%clk 0:00:29.2]} 57.
Ke6 {[%clk 0:00:55.9]} 57... a1=Q {[%clk 0:00:29]} 58. Kf5 {[%clk 0:00:56.8]}
58... Qa5+ {[%clk 0:00:28.8]} 59. Kg6 {[%clk 0:00:57.7]} 59... Qb6 {[%clk
0:00:26.2]} 60. Kh7 {[%clk 0:00:55.7]} 60... Qxf7+ {[%clk 0:00:25.8]} 61. Kh6
{[%clk 0:00:53.6]} 61... Qbxf6# {[%clk 0:00:26.3]} 0-1

[Event "Early-Titled-Tuesday-Blitz-October-17-2023"]
[Site "Chess.com"]
[Date "2023.10.17"]
[Round "3"]
[White "AndresDelgado77"]
[Black "Gyulamiryan-koryun"]
[Result "1-0"]
[WhiteElo "2327"]
[BlackElo "1935"]
[TimeControl "180+1"]
[EndTime "8:29:10 PDT"]
[Termination "AndresDelgado77 won by checkmate"]

1. e4 {[%clk 0:02:37.8]} 1... e5 {[%clk 0:02:58.5]} 2. Nc3 {[%clk 0:02:37]} 2...
Nc6 {[%clk 0:02:54]} 3. f4 {[%clk 0:02:36.1]} 3... exf4 {[%clk 0:02:51.5]} 4. d4
{[%clk 0:02:36.1]} 4... Qh4+ {[%clk 0:02:40.6]} 5. Ke2 {[%clk 0:02:35.1]} 5...
d5 {[%clk 0:02:39.3]} 6. Nxd5 {[%clk 0:02:26.6]} 6... Bg4+ {[%clk 0:02:33.3]} 7.
Nf3 {[%clk 0:02:26.6]} 7... O-O-O {[%clk 0:02:31.3]} 8. Bxf4 {[%clk 0:02:23]}
8... Nf6 {[%clk 0:02:22.1]} 9. Bg3 {[%clk 0:01:45.4]} 9... Bxf3+ {[%clk
0:02:20.8]} 10. gxf3 {[%clk 0:01:44.6]} 10... Qh5 {[%clk 0:02:16]} 11. Nxf6
{[%clk 0:01:01.9]} 11... gxf6 {[%clk 0:02:10.7]} 12. c3 {[%clk 0:01:02]} 12...
Bd6 {[%clk 0:01:58.1]} 13. Bg2 {[%clk 0:00:52.1]} 13... Rhe8 {[%clk 0:01:54.5]}
14. Kf2 {[%clk 0:00:51.7]} 14... Qb5 {[%clk 0:01:38.7]} 15. Bh3+ {[%clk
0:00:43.4]} 15... Kb8 {[%clk 0:01:37.4]} 16. Qb3 {[%clk 0:00:43.3]} 16... Qg5
{[%clk 0:01:24.8]} 17. Rad1 {[%clk 0:00:28.8]} 17... h5 {[%clk 0:01:18.4]} 18.
Rhg1 {[%clk 0:00:26.4]} 18... Bxg3+ {[%clk 0:01:12.2]} 19. Rxg3 {[%clk
0:00:20.7]} 19... Qf4 {[%clk 0:01:10.1]} 20. Kg2 {[%clk 0:00:16.2]} 20... h4
{[%clk 0:01:08.6]} 21. Rg4 {[%clk 0:00:16]} 21... Qh6 {[%clk 0:01:04]} 22. Qxf7
{[%clk 0:00:15.4]} 22... Ne5 {[%clk 0:00:59.5]} 23. dxe5 {[%clk 0:00:12.7]}
23... Rd2+ {[%clk 0:00:56.2]} 24. Rxd2 {[%clk 0:00:10.2]} 24... Qxd2+ {[%clk
0:00:55.9]} 25. Kh1 {[%clk 0:00:10.6]} 25... Qd1+ {[%clk 0:00:50.9]} 26. Rg1
{[%clk 0:00:08]} 26... Qxf3+ {[%clk 0:00:50.9]} 27. Bg2 {[%clk 0:00:08.3]} 27...
Qg4 {[%clk 0:00:22.9]} 28. Qxe8+ {[%clk 0:00:07.6]} 28... Qc8 {[%clk 0:00:22.5]}
29. Qxc8+ {[%clk 0:00:08]} 29... Kxc8 {[%clk 0:00:22.6]} 30. Bh3+ {[%clk
0:00:08.9]} 30... Kd8 {[%clk 0:00:22.9]} 31. exf6 {[%clk 0:00:09.1]} 31... Ke8
{[%clk 0:00:22.6]} 32. Be6 {[%clk 0:00:08.9]} 32... c6 {[%clk 0:00:18.4]} 33.
Rg8# {[%clk 0:00:09]} 1-0

[Event "Early-Titled-Tuesday-Blitz-October-17-2023"]
[Site "Chess.com"]
[Date "2023.10.17"]
[Round "3"]
[White "nelsi"]
[Black "brm72"]
[Result "0-1"]
[WhiteElo "2288"]
[BlackElo "2505"]
[TimeControl "180+1"]
[EndTime "8:29:15 PDT"]
[Termination "brm72 won on time"]

1. e4 {[%clk 0:03:00.9]} 1... c5 {[%clk 0:03:00.1]} 2. Nf3 {[%clk 0:03:00.9]}
2... d6 {[%clk 0:03:00.1]} 3. Bb5+ {[%clk 0:03:01.4]} 3... Nd7 {[%clk
0:02:58.5]} 4. d4 {[%clk 0:03:01.3]} 4... cxd4 {[%clk 0:02:58.6]} 5. Qxd4 {[%clk
0:03:02.2]} 5... a6 {[%clk 0:02:58]} 6. Bxd7+ {[%clk 0:03:02.9]} 6... Bxd7
{[%clk 0:02:57.9]} 7. Nc3 {[%clk 0:03:03.8]} 7... e5 {[%clk 0:02:51.8]} 8. Qd3
{[%clk 0:03:03.5]} 8... Rc8 {[%clk 0:02:51.3]} 9. Bg5 {[%clk 0:03:02.5]} 9...
Qc7 {[%clk 0:02:49.2]} 10. O-O {[%clk 0:03:00.6]} 10... h6 {[%clk 0:02:47.6]}
11. Be3 {[%clk 0:02:58]} 11... Nf6 {[%clk 0:02:47.2]} 12. Rfd1 {[%clk
0:02:53.8]} 12... Be7 {[%clk 0:02:45.5]} 13. Rac1 {[%clk 0:02:52.5]} 13... b5
{[%clk 0:02:44.2]} 14. a3 {[%clk 0:02:36.4]} 14... O-O {[%clk 0:02:41.8]} 15. h3
{[%clk 0:02:27.1]} 15... Bc6 {[%clk 0:02:34.8]} 16. Nh4 {[%clk 0:02:09.7]} 16...
Rfd8 {[%clk 0:02:03.6]} 17. Nf5 {[%clk 0:02:08]} 17... Bf8 {[%clk 0:02:03.4]}
18. g4 {[%clk 0:01:33.2]} 18... d5 {[%clk 0:01:57.2]} 19. exd5 {[%clk
0:01:19.1]} 19... Nxd5 {[%clk 0:01:55.7]} 20. Nxd5 {[%clk 0:01:13.1]} 20... Rxd5
{[%clk 0:01:50.4]} 21. Qe2 {[%clk 0:01:07.4]} 21... Rcd8 {[%clk 0:01:47.1]} 22.
Rxd5 {[%clk 0:01:05.6]} 22... Bxd5 {[%clk 0:01:47.6]} 23. Rd1 {[%clk 0:01:00.8]}
23... Bc4 {[%clk 0:01:40.2]} 24. Qe1 {[%clk 0:00:50.2]} 24... Be6 {[%clk
0:01:31.8]} 25. Rxd8 {[%clk 0:00:44.5]} 25... Qxd8 {[%clk 0:01:32.7]} 26. Ng3
{[%clk 0:00:44.7]} 26... Qh4 {[%clk 0:01:18.5]} 27. Kg2 {[%clk 0:00:39]} 27...
h5 {[%clk 0:00:59.7]} 28. Nxh5 {[%clk 0:00:32.9]} 28... f5 {[%clk 0:00:59.9]}
29. Qa5 {[%clk 0:00:04.1]} 29... fxg4 {[%clk 0:00:52.2]} 30. hxg4 {[%clk
0:00:04.6]} 30... Qxg4+ {[%clk 0:00:49.4]} 31. Ng3 {[%clk 0:00:05.5]} 31... Bd5+
{[%clk 0:00:49.5]} 32. Kf1 {[%clk 0:00:06]} 32... Qd1+ {[%clk 0:00:48.7]} 33.
Qe1 {[%clk 0:00:06.4]} 33... Bg2+ {[%clk 0:00:48.7]} 34. Kxg2 {[%clk 0:00:05.9]}
34... Qxe1 {[%clk 0:00:49.2]} 35. Ne4 {[%clk 0:00:06.2]} 35... Qd1 {[%clk
0:00:48.1]} 36. c3 {[%clk 0:00:05.4]} 36... Qg4+ {[%clk 0:00:47.9]} 37. Ng3
{[%clk 0:00:05.5]} 37... e4 {[%clk 0:00:47.8]} 38. Kf1 {[%clk 0:00:05.8]} 38...
Qf3 {[%clk 0:00:47.7]} 39. Ke1 {[%clk 0:00:05.5]} 39... Bd6 {[%clk 0:00:47]} 40.
Ne2 {[%clk 0:00:06.4]} 40... Be5 {[%clk 0:00:43.5]} 41. Kd2 {[%clk 0:00:06.4]}
41... g5 {[%clk 0:00:42.2]} 42. Ng1 {[%clk 0:00:06.9]} 42... Qg2 {[%clk
0:00:41.9]} 43. Ne2 {[%clk 0:00:07.8]} 43... g4 {[%clk 0:00:41.9]} 44. a4 {[%clk
0:00:08.1]} 44... bxa4 {[%clk 0:00:40.9]} 45. Kc2 {[%clk 0:00:07.3]} 45... g3
{[%clk 0:00:40.6]} 46. Nxg3 {[%clk 0:00:05.1]} 46... Bxg3 {[%clk 0:00:40.5]} 0-1